[Event "Argentine Superior Chess Championship 2023"]
[Site "https://www.chess.com"]
[Date "2023.11.07"]
[Round "13"]
[White "Peralta, Fernando"]
[Black "Perez Ponsa, Federico"]
[Result "1-0"]
[Board "1"]
[TimeControl "15 + 10"]
[WhiteFideId "105309"]
[BlackFideId "117927"]
[WhiteElo "2577"]
[BlackElo "2592"]
[WhiteTeam "ARG"]
[BlackTeam "ARG"]
[WhiteClock "0:00:59"]
[BlackClock "0:00:31"]

1. d4 {[%clk 0:15:17]}  Nf6 {[%clk 0:15:19]} 2. c4 {[%clk 0:15:26]}  e6 {[%clk 0:15:28]} 3. Nc3 {[%clk 0:15:31]}  d5 {[%clk 0:15:34]} 4. cxd5 {[%clk 0:15:37]}  exd5 {[%clk 0:15:43]} 5. Bg5 {[%clk 0:15:43]}  c6 {[%clk 0:15:51]} 6. e3 {[%clk 0:15:46]}  h6 {[%clk 0:15:57]} 7. Bh4 {[%clk 0:15:53]}  Be7 {[%clk 0:16:06]} 8. Bd3 {[%clk 0:15:57]}  O-O {[%clk 0:16:08]} 9. Nge2 {[%clk 0:15:59]}  Ne8 {[%clk 0:16:09]} 10. Bg3 {[%clk 0:15:25]}  Nd6 {[%clk 0:16:17]} 11. O-O {[%clk 0:15:04]}  Re8 {[%clk 0:16:26]} 12. f3 {[%clk 0:12:58]}  Nc4 {[%clk 0:10:34]} 13. Bxc4 {[%clk 0:13:05]}  dxc4 {[%clk 0:10:44]} 14. e4 {[%clk 0:12:48]}  Na6 {[%clk 0:10:29]} 15. a3 {[%clk 0:11:56]}  b5 {[%clk 0:10:12]} 16. Kh1 {[%clk 0:10:35]}  Nc7 {[%clk 0:09:19]} 17. Qc2 {[%clk 0:08:53]}  a5 {[%clk 0:08:52]} 18. Rfd1 {[%clk 0:08:53]}  Bf8 {[%clk 0:07:59]} 19. Nf4 {[%clk 0:07:04]}  b4 {[%clk 0:04:35]} 20. axb4 {[%clk 0:06:04]}  axb4 {[%clk 0:04:40]} 21. Rxa8 {[%clk 0:06:13]}  Nxa8 {[%clk 0:04:50]} 22. Nce2 {[%clk 0:05:33]}  Nb6 {[%clk 0:04:28]} 23. Bf2 {[%clk 0:05:01]}  Ba6 {[%clk 0:03:57]} 24. h3 {[%clk 0:04:20]}  Bb5 {[%clk 0:03:50]} 25. Ra1 {[%clk 0:03:16]}  Qb8 {[%clk 0:03:10]} 26. Bg3 {[%clk 0:02:20]}  Qb7 {[%clk 0:03:08]} 27. Re1 {[%clk 0:01:22]}  Qa7 {[%clk 0:02:45]} 28. Nh5 {[%clk 0:01:14]}  Qa2 {[%clk 0:01:53]} 29. Nc1 {[%clk 0:00:59]}  Qa5 {[%clk 0:02:00]} 30. Qf2 {[%clk 0:00:36]}  c3 {[%clk 0:01:24]} 31. bxc3 {[%clk 0:00:37]}  bxc3 {[%clk 0:01:33]} 32. Be5 {[%clk 0:00:39]}  c2 {[%clk 0:00:56]} 33. Bxg7 {[%clk 0:00:30]}  Bxg7 {[%clk 0:00:28]} 34. Qg3 {[%clk 0:00:36]}  Qxe1+ {[%clk 0:00:28]} 35. Qxe1 {[%clk 0:00:45]}  Bh8 {[%clk 0:00:14]} 36. Qd2 {[%clk 0:00:32]}  Ba4 {[%clk 0:00:13]} 37. Qxh6 {[%clk 0:00:29]}  Bxd4 {[%clk 0:00:13]} 38. Nf6+ {[%clk 0:00:13]}  Bxf6 {[%clk 0:00:19]} 39. Qxf6 {[%clk 0:00:22]}  Re6 {[%clk 0:00:14]} 40. Qd8+ {[%clk 0:00:29]}  Kg7 {[%clk 0:00:11]} 41. Qxb6 {[%clk 0:00:37]}  Rd6 {[%clk 0:00:20]} 42. Kh2 {[%clk 0:00:40]}  Rd1 {[%clk 0:00:23]} 43. Qb2+ {[%clk 0:00:45]}  Kg8 {[%clk 0:00:12]} 44. h4 {[%clk 0:00:52]}  c5 {[%clk 0:00:22]} 45. h5 {[%clk 0:00:53]}  c4 {[%clk 0:00:31]} 46. h6 {[%clk 0:00:59]} 1-0